[Event "Titled Tuesday Blitz April 18 Late 2023"]
[White "Jaracz, Pawel"]
[Black "Yoo, Christopher Woojin"]
[WhiteFideId "1102222"]
[BlackFideId "30909694"]
[WhiteElo "2438"]
[BlackElo "2519"]
[Result "0-1"]
[Round "04"]
[TimeControl "180+2"]
[Date "2023.04.18"]
[WhiteClock "0:00:01"]
[BlackClock "0:00:22"]

1. d4 {[%clk 0:03:00]}  Nf6 {[%clk 0:02:58]} 2. c4 {[%clk 0:02:59]}  e6 {[%clk 0:02:56]} 3. Nf3 {[%clk 0:02:58]}  d5 {[%clk 0:02:54]} 4. Nbd2 {[%clk 0:02:48]}  Bb4 {[%clk 0:02:44]} 5. e3 {[%clk 0:02:46]}  O-O {[%clk 0:02:45]} 6. a3 {[%clk 0:02:44]}  Be7 {[%clk 0:02:44]} 7. Bd3 {[%clk 0:02:44]}  b6 {[%clk 0:02:25]} 8. O-O {[%clk 0:02:34]}  Bb7 {[%clk 0:02:23]} 9. b4 {[%clk 0:02:29]}  a5 {[%clk 0:01:46]} 10. b5 {[%clk 0:02:27]}  Nbd7 {[%clk 0:01:38]} 11. Bb2 {[%clk 0:02:21]}  c6 {[%clk 0:01:30]} 12. bxc6 {[%clk 0:02:20]}  Bxc6 {[%clk 0:01:30]} 13. Rc1 {[%clk 0:02:06]}  Rc8 {[%clk 0:01:26]} 14. Qe2 {[%clk 0:02:01]}  dxc4 {[%clk 0:01:17]} 15. Bxc4 {[%clk 0:01:56]}  b5 {[%clk 0:01:17]} 16. Bd3 {[%clk 0:01:47]}  Nd5 {[%clk 0:01:03]} 17. g3 {[%clk 0:01:09]}  b4 {[%clk 0:00:56]} 18. axb4 {[%clk 0:01:09]}  Nxb4 {[%clk 0:00:53]} 19. Be4 {[%clk 0:00:46]}  Bxe4 {[%clk 0:00:36]} 20. Nxe4 {[%clk 0:00:46]}  Qb6 {[%clk 0:00:37]} 21. Nfd2 {[%clk 0:00:42]}  Nd5 {[%clk 0:00:33]} 22. Nc4 {[%clk 0:00:39]}  Qb5 {[%clk 0:00:30]} 23. Rfe1 {[%clk 0:00:32]}  Bb4 {[%clk 0:00:26]} 24. Red1 {[%clk 0:00:29]}  N7b6 {[%clk 0:00:22]} 25. Qg4 {[%clk 0:00:01]} 0-1


[Site "https://www.chess.com"]

[Event "Titled Tuesday Blitz April 18 Late 2023"]
[White "Rodshtein, Maxim"]
[Black "Lazavik, Denis"]
[WhiteFideId "2806851"]
[BlackFideId "13515110"]
[WhiteElo "2555"]
[BlackElo "2560"]
[Result "0-1"]
[Round "04"]
[TimeControl "180+2"]
[Date "2023.04.18"]
[WhiteClock "0:00:36"]
[BlackClock "0:01:47"]

1. b3 {[%clk 0:03:00]}  d5 {[%clk 0:02:59]} 2. Bb2 {[%clk 0:03:01]}  Nf6 {[%clk 0:02:58]} 3. e3 {[%clk 0:03:01]}  c6 {[%clk 0:02:57]} 4. Nf3 {[%clk 0:03:01]}  Bg4 {[%clk 0:02:58]} 5. h3 {[%clk 0:03:01]}  Bh5 {[%clk 0:02:58]} 6. c4 {[%clk 0:03:00]}  e6 {[%clk 0:02:58]} 7. Nc3 {[%clk 0:03:01]}  Nbd7 {[%clk 0:02:58]} 8. g4 {[%clk 0:02:58]}  Bg6 {[%clk 0:02:59]} 9. Nh4 {[%clk 0:02:58]}  Bd6 {[%clk 0:02:52]} 10. Nxg6 {[%clk 0:02:57]}  hxg6 {[%clk 0:02:53]} 11. Bg2 {[%clk 0:02:57]}  Qe7 {[%clk 0:02:53]} 12. a3 {[%clk 0:02:53]}  O-O-O {[%clk 0:02:49]} 13. d4 {[%clk 0:02:51]}  Bc7 {[%clk 0:02:40]} 14. Rc1 {[%clk 0:02:47]}  Kb8 {[%clk 0:02:40]} 15. Qc2 {[%clk 0:02:31]}  Rc8 {[%clk 0:02:25]} 16. Qe2 {[%clk 0:02:03]}  g5 {[%clk 0:02:25]} 17. Rc2 {[%clk 0:01:35]}  Nf8 {[%clk 0:02:23]} 18. b4 {[%clk 0:01:34]}  Ng6 {[%clk 0:02:21]} 19. Kd1 {[%clk 0:01:25]}  Nh4 {[%clk 0:02:20]} 20. Bf1 {[%clk 0:01:25]}  e5 {[%clk 0:02:19]} 21. cxd5 {[%clk 0:01:18]}  cxd5 {[%clk 0:02:17]} 22. Nb5 {[%clk 0:01:15]}  e4 {[%clk 0:02:16]} 23. Rc5 {[%clk 0:01:09]}  Bb6 {[%clk 0:02:13]} 24. Qc2 {[%clk 0:01:08]}  a6 {[%clk 0:02:05]} 25. Nc3 {[%clk 0:01:08]}  Bxc5 {[%clk 0:02:05]} 26. dxc5 {[%clk 0:01:08]}  Nf3 {[%clk 0:02:03]} 27. Bg2 {[%clk 0:01:03]}  d4 {[%clk 0:02:02]} 28. Nxe4 {[%clk 0:01:02]}  Nxe4 {[%clk 0:01:48]} 29. Bxf3 {[%clk 0:00:59]}  d3 {[%clk 0:01:48]} 30. Qc4 {[%clk 0:00:54]}  Nxf2+ {[%clk 0:01:48]} 31. Kd2 {[%clk 0:00:55]}  Nxh1 {[%clk 0:01:48]} 32. Bxh1 {[%clk 0:00:55]}  Rxh3 {[%clk 0:01:48]} 33. Bg2 {[%clk 0:00:36]}  Qxe3+ {[%clk 0:01:47]} 0-1


[Site "https://www.chess.com"]

[Event "Titled Tuesday Blitz April 18 Late 2023"]
[White "Pranav, V"]
[Black "Peng, Li Min"]
[WhiteFideId "25060783"]
[BlackFideId "14112620"]
[WhiteElo "2500"]
[BlackElo "2436"]
[Result "1-0"]
[Round "04"]
[TimeControl "180+2"]
[Date "2023.04.18"]
[WhiteClock "0:00:03"]
[BlackClock "0:00:02"]

1. e4 {[%clk 0:03:00]}  Nc6 {[%clk 0:03:00]} 2. d4 {[%clk 0:02:58]}  d5 {[%clk 0:03:00]} 3. e5 {[%clk 0:02:56]}  f6 {[%clk 0:03:00]} 4. Nf3 {[%clk 0:02:52]}  Bg4 {[%clk 0:03:00]} 5. Bb5 {[%clk 0:02:44]}  e6 {[%clk 0:03:00]} 6. Nbd2 {[%clk 0:02:40]}  fxe5 {[%clk 0:02:55]} 7. dxe5 {[%clk 0:02:37]}  Qd7 {[%clk 0:02:50]} 8. h3 {[%clk 0:02:35]}  Bh5 {[%clk 0:02:40]} 9. c3 {[%clk 0:02:27]}  Bc5 {[%clk 0:02:32]} 10. Nb3 {[%clk 0:02:20]}  Bb6 {[%clk 0:02:29]} 11. a4 {[%clk 0:02:11]}  a6 {[%clk 0:02:27]} 12. Bxc6 {[%clk 0:02:09]}  bxc6 {[%clk 0:02:28]} 13. a5 {[%clk 0:02:08]}  Ba7 {[%clk 0:02:28]} 14. Be3 {[%clk 0:02:05]}  Bxe3 {[%clk 0:02:24]} 15. fxe3 {[%clk 0:02:06]}  Nh6 {[%clk 0:02:18]} 16. O-O {[%clk 0:02:01]}  O-O {[%clk 0:02:17]} 17. g4 {[%clk 0:01:58]}  Nxg4 {[%clk 0:01:28]} 18. hxg4 {[%clk 0:01:56]}  Bxg4 {[%clk 0:01:29]} 19. Ra4 {[%clk 0:01:52]}  h5 {[%clk 0:01:28]} 20. Rf4 {[%clk 0:01:44]}  Qe7 {[%clk 0:01:27]} 21. Qd4 {[%clk 0:01:34]}  Rab8 {[%clk 0:01:14]} 22. Nc5 {[%clk 0:01:25]}  Rxf4 {[%clk 0:01:09]} 23. exf4 {[%clk 0:01:20]}  Rxb2 {[%clk 0:01:03]} 24. Ng5 {[%clk 0:01:06]}  h4 {[%clk 0:00:51]} 25. Rf2 {[%clk 0:00:59]}  Rb5 {[%clk 0:00:44]} 26. Nxa6 {[%clk 0:00:51]}  Rxa5 {[%clk 0:00:42]} 27. Rb2 {[%clk 0:00:50]}  g6 {[%clk 0:00:40]} 28. Qa7 {[%clk 0:00:40]}  Kg7 {[%clk 0:00:40]} 29. Qxc7 {[%clk 0:00:38]}  Qxc7 {[%clk 0:00:40]} 30. Nxc7 {[%clk 0:00:39]}  Ra1+ {[%clk 0:00:38]} 31. Kh2 {[%clk 0:00:38]}  Kh6 {[%clk 0:00:35]} 32. Ne8 {[%clk 0:00:29]}  Rf1 {[%clk 0:00:32]} 33. Nf7+ {[%clk 0:00:21]}  Kh7 {[%clk 0:00:33]} 34. Nf6+ {[%clk 0:00:20]}  Kg7 {[%clk 0:00:33]} 35. Rb7 {[%clk 0:00:20]}  Rf2+ {[%clk 0:00:28]} 36. Kg1 {[%clk 0:00:20]}  Rxf4 {[%clk 0:00:29]} 37. Nd6+ {[%clk 0:00:20]}  Kh6 {[%clk 0:00:23]} 38. Nf7+ {[%clk 0:00:13]}  Kg7 {[%clk 0:00:21]} 39. Nd6+ {[%clk 0:00:09]}  Kh6 {[%clk 0:00:21]} 40. Ng8+ {[%clk 0:00:09]}  Kg5 {[%clk 0:00:19]} 41. Nf6 {[%clk 0:00:07]}  Bh5 {[%clk 0:00:16]} 42. Nxh5 {[%clk 0:00:06]}  Kxh5 {[%clk 0:00:16]} 43. Re7 {[%clk 0:00:07]}  Rg4+ {[%clk 0:00:10]} 44. Kh2 {[%clk 0:00:06]}  Rg3 {[%clk 0:00:09]} 45. Rxe6 {[%clk 0:00:07]}  Rxc3 {[%clk 0:00:09]} 46. Rf6 {[%clk 0:00:07]}  Rc2+ {[%clk 0:00:04]} 47. Kg1 {[%clk 0:00:06]}  Re2 {[%clk 0:00:03]} 48. Nf7 {[%clk 0:00:06]}  h3 {[%clk 0:00:02]} 49. Rf2 {[%clk 0:00:03]} 1-0


[Site "https://www.chess.com"]

[Event "Titled Tuesday Blitz April 18 Late 2023"]
[White "Moussard, Jules"]
[Black "Makridis, Dimitrios"]
[WhiteFideId "642908"]
[BlackFideId "25864475"]
[WhiteElo "2610"]
[BlackElo "2277"]
[Result "0-1"]
[Round "04"]
[TimeControl "180+2"]
[Date "2023.04.18"]
[WhiteClock "0:02:05"]
[BlackClock "0:01:07"]

1. d4 {[%clk 0:03:00]}  Nf6 {[%clk 0:02:57]} 2. Nf3 {[%clk 0:03:00]}  e6 {[%clk 0:02:41]} 3. g3 {[%clk 0:02:56]}  b6 {[%clk 0:02:34]} 4. Bg2 {[%clk 0:02:56]}  Bb7 {[%clk 0:02:22]} 5. O-O {[%clk 0:02:56]}  Be7 {[%clk 0:02:22]} 6. c4 {[%clk 0:02:56]}  O-O {[%clk 0:02:21]} 7. Re1 {[%clk 0:02:51]}  Ne4 {[%clk 0:02:19]} 8. Qc2 {[%clk 0:02:46]}  f5 {[%clk 0:02:18]} 9. Nfd2 {[%clk 0:02:44]}  d5 {[%clk 0:02:04]} 10. Nc3 {[%clk 0:02:44]}  Nc6 {[%clk 0:02:01]} 11. Nf3 {[%clk 0:02:41]}  dxc4 {[%clk 0:01:58]} 12. Nxe4 {[%clk 0:02:38]}  Nb4 {[%clk 0:01:55]} 13. Qxc4 {[%clk 0:02:37]}  Bd5 {[%clk 0:01:55]} 14. Qb5 {[%clk 0:02:26]}  fxe4 {[%clk 0:01:41]} 15. Nd2 {[%clk 0:02:26]}  Nc2 {[%clk 0:01:41]} 16. Nxe4 {[%clk 0:02:21]}  Nxe1 {[%clk 0:01:39]} 17. Bh1 {[%clk 0:02:17]}  Nc2 {[%clk 0:01:39]} 18. Rb1 {[%clk 0:02:17]}  Nxd4 {[%clk 0:01:39]} 19. Qd3 {[%clk 0:02:17]}  c5 {[%clk 0:01:39]} 20. b3 {[%clk 0:02:17]}  Nf5 {[%clk 0:01:33]} 21. Bb2 {[%clk 0:02:15]}  Qe8 {[%clk 0:01:31]} 22. e3 {[%clk 0:02:13]}  Rd8 {[%clk 0:01:30]} 23. Qa6 {[%clk 0:02:14]}  Nd6 {[%clk 0:01:25]} 24. Nxd6 {[%clk 0:02:12]}  Bxd6 {[%clk 0:01:25]} 25. Qxa7 {[%clk 0:02:12]}  Qf7 {[%clk 0:01:23]} 26. Qxf7+ {[%clk 0:02:11]}  Kxf7 {[%clk 0:01:24]} 27. e4 {[%clk 0:02:12]}  Bc6 {[%clk 0:01:23]} 28. Bf3 {[%clk 0:02:12]}  e5 {[%clk 0:01:18]} 29. Re1 {[%clk 0:02:10]}  Ra8 {[%clk 0:01:18]} 30. a4 {[%clk 0:02:10]}  Ke7 {[%clk 0:01:16]} 31. Kg2 {[%clk 0:02:04]}  g6 {[%clk 0:01:12]} 32. h4 {[%clk 0:02:04]}  Bd7 {[%clk 0:01:11]} 33. Rd1 {[%clk 0:02:03]}  Bh3+ {[%clk 0:01:11]} 34. Kxh3 {[%clk 0:02:02]}  Rxf3 {[%clk 0:01:11]} 35. Kg2 {[%clk 0:02:00]}  Rxb3 {[%clk 0:01:11]} 36. Bc1 {[%clk 0:02:01]}  Rxa4 {[%clk 0:01:10]} 37. f3 {[%clk 0:02:00]}  Ra2+ {[%clk 0:01:10]} 38. Kh3 {[%clk 0:02:01]}  Rxf3 {[%clk 0:01:09]} 39. Bg5+ {[%clk 0:02:01]}  Ke6 {[%clk 0:01:10]} 40. h5 {[%clk 0:02:02]}  gxh5 {[%clk 0:01:09]} 41. Rb1 {[%clk 0:02:01]}  Rff2 {[%clk 0:01:08]} 42. Rh1 {[%clk 0:02:00]}  Be7 {[%clk 0:01:08]} 43. Be3 {[%clk 0:02:00]}  Rfe2 {[%clk 0:01:08]} 44. Bg1 {[%clk 0:02:00]}  Ra1 {[%clk 0:01:06]} 45. Rh2 {[%clk 0:01:59]}  Rxh2+ {[%clk 0:01:06]} 46. Bxh2 {[%clk 0:01:59]}  c4 {[%clk 0:01:06]} 47. g4 {[%clk 0:02:00]}  hxg4+ {[%clk 0:01:06]} 48. Kxg4 {[%clk 0:02:00]}  c3 {[%clk 0:01:06]} 49. Kh5 {[%clk 0:02:01]}  c2 {[%clk 0:01:06]} 50. Bf4 {[%clk 0:02:02]}  exf4 {[%clk 0:01:06]} 51. e5 {[%clk 0:02:03]}  c1=Q {[%clk 0:01:06]} 52. Kh6 {[%clk 0:02:04]}  Qg1 {[%clk 0:01:06]} 53. Kxh7 {[%clk 0:02:04]}  Qg2 {[%clk 0:01:06]} 54. Kh8 {[%clk 0:02:05]}  Rh1# {[%clk 0:01:07]} 0-1


[Site "https://www.chess.com"]

[Event "Titled Tuesday Blitz April 18 Late 2023"]
[White "Thomforde-Toates, Noah"]
[Black "Eljanov, Pavel"]
[WhiteFideId "30951992"]
[BlackFideId "14102951"]
[WhiteElo "2750"]
[BlackElo "2598"]
[Result "0-1"]
[Round "04"]
[TimeControl "180+2"]
[Date "2023.04.18"]
[WhiteClock "0:00:05"]
[BlackClock "0:00:06"]

1. e4 {[%clk 0:03:00]}  c6 {[%clk 0:02:58]} 2. d4 {[%clk 0:03:00]}  d5 {[%clk 0:02:57]} 3. e5 {[%clk 0:03:00]}  Bf5 {[%clk 0:02:57]} 4. h4 {[%clk 0:02:59]}  h5 {[%clk 0:02:57]} 5. Bd3 {[%clk 0:02:59]}  Bxd3 {[%clk 0:02:57]} 6. Qxd3 {[%clk 0:03:00]}  Qa5+ {[%clk 0:02:57]} 7. Nd2 {[%clk 0:03:00]}  e6 {[%clk 0:02:57]} 8. Nf3 {[%clk 0:03:00]}  Nh6 {[%clk 0:02:55]} 9. c4 {[%clk 0:03:00]}  Nf5 {[%clk 0:02:45]} 10. O-O {[%clk 0:02:52]}  Be7 {[%clk 0:02:46]} 11. g3 {[%clk 0:02:48]}  O-O {[%clk 0:02:45]} 12. b3 {[%clk 0:02:43]}  Rd8 {[%clk 0:02:45]} 13. c5 {[%clk 0:02:41]}  b6 {[%clk 0:02:44]} 14. cxb6 {[%clk 0:02:08]}  Qxb6 {[%clk 0:02:44]} 15. Bb2 {[%clk 0:02:02]}  c5 {[%clk 0:02:44]} 16. Rac1 {[%clk 0:01:58]}  Nd7 {[%clk 0:02:33]} 17. dxc5 {[%clk 0:01:47]}  Nxc5 {[%clk 0:02:29]} 18. Qe2 {[%clk 0:01:47]}  Qa6 {[%clk 0:02:17]} 19. Qxa6 {[%clk 0:01:45]}  Nxa6 {[%clk 0:02:18]} 20. Nd4 {[%clk 0:01:37]}  Nxd4 {[%clk 0:02:17]} 21. Bxd4 {[%clk 0:01:37]}  Rdc8 {[%clk 0:02:08]} 22. Rxc8+ {[%clk 0:01:26]}  Rxc8 {[%clk 0:02:09]} 23. Bxa7 {[%clk 0:01:26]}  Rc2 {[%clk 0:02:09]} 24. Nf3 {[%clk 0:01:24]}  Rxa2 {[%clk 0:02:09]} 25. Bd4 {[%clk 0:01:23]}  Nc5 {[%clk 0:01:58]} 26. Rc1 {[%clk 0:01:13]}  Nxb3 {[%clk 0:01:44]} 27. Rc8+ {[%clk 0:01:11]}  Bf8 {[%clk 0:01:21]} 28. Bb6 {[%clk 0:01:02]}  f6 {[%clk 0:01:12]} 29. Bd8 {[%clk 0:00:52]}  Kf7 {[%clk 0:01:03]} 30. exf6 {[%clk 0:00:32]}  gxf6 {[%clk 0:01:04]} 31. Bxf6 {[%clk 0:00:30]}  Bc5 {[%clk 0:01:04]} 32. Bg5 {[%clk 0:00:21]}  Bxf2+ {[%clk 0:01:03]} 33. Kg2 {[%clk 0:00:19]}  Bd4+ {[%clk 0:00:33]} 34. Kh3 {[%clk 0:00:19]}  e5 {[%clk 0:00:34]} 35. Rc7+ {[%clk 0:00:17]}  Ke6 {[%clk 0:00:34]} 36. Rb7 {[%clk 0:00:14]}  Nc5 {[%clk 0:00:26]} 37. Nxd4+ {[%clk 0:00:13]}  exd4 {[%clk 0:00:26]} 38. Rh7 {[%clk 0:00:13]}  d3 {[%clk 0:00:24]} 39. Rxh5 {[%clk 0:00:13]}  d2 {[%clk 0:00:23]} 40. Bxd2 {[%clk 0:00:13]}  Rxd2 {[%clk 0:00:23]} 41. Rh6+ {[%clk 0:00:13]}  Ke5 {[%clk 0:00:21]} 42. Rh5+ {[%clk 0:00:14]}  Ke4 {[%clk 0:00:20]} 43. Rh8 {[%clk 0:00:14]}  Nd7 {[%clk 0:00:19]} 44. Re8+ {[%clk 0:00:13]}  Ne5 {[%clk 0:00:19]} 45. h5 {[%clk 0:00:14]}  Ra2 {[%clk 0:00:18]} 46. Kh4 {[%clk 0:00:13]}  Kf5 {[%clk 0:00:15]} 47. Rf8+ {[%clk 0:00:13]}  Ke6 {[%clk 0:00:15]} 48. Kg5 {[%clk 0:00:13]}  Rg2 {[%clk 0:00:13]} 49. Re8+ {[%clk 0:00:11]}  Kd6 {[%clk 0:00:14]} 50. Rd8+ {[%clk 0:00:11]}  Ke7 {[%clk 0:00:14]} 51. Rxd5 {[%clk 0:00:11]}  Ke6 {[%clk 0:00:14]} 52. Ra5 {[%clk 0:00:08]}  Rxg3+ {[%clk 0:00:15]} 53. Kh6 {[%clk 0:00:08]}  Ng4+ {[%clk 0:00:14]} 54. Kg5 {[%clk 0:00:07]}  Ne5+ {[%clk 0:00:13]} 55. Kh6 {[%clk 0:00:08]}  Kf5 {[%clk 0:00:09]} 56. Kh7 {[%clk 0:00:07]}  Rh3 {[%clk 0:00:09]} 57. h6 {[%clk 0:00:07]}  Kf6 {[%clk 0:00:09]} 58. Ra6+ {[%clk 0:00:03]}  Ke7 {[%clk 0:00:08]} 59. Ra7+ {[%clk 0:00:03]}  Nd7 {[%clk 0:00:09]} 60. Kg8 {[%clk 0:00:04]}  Rg3+ {[%clk 0:00:09]} 61. Kh8 {[%clk 0:00:04]}  Ke8 {[%clk 0:00:08]} 62. h7 {[%clk 0:00:05]}  Ne5 {[%clk 0:00:08]} 63. Ra8+ {[%clk 0:00:05]}  Kf7 {[%clk 0:00:08]} 64. Rg8 {[%clk 0:00:05]}  Ng6+ {[%clk 0:00:07]} 65. Rxg6 {[%clk 0:00:04]}  Kxg6 {[%clk 0:00:07]} 66. Kg8 {[%clk 0:00:05]}  Ra3 {[%clk 0:00:08]} 67. h8=N+ {[%clk 0:00:05]}  Kf6 {[%clk 0:00:08]} 68. Kh7 {[%clk 0:00:05]}  Rg3 {[%clk 0:00:06]} 0-1


[Site "https://www.chess.com"]

[Event "Titled Tuesday Blitz April 18 Late 2023"]
[White "Andreikin, Dmitry"]
[Black "cryptoguru02"]
[WhiteFideId "4158814"]
[WhiteElo "2736"]
[BlackElo "2604"]
[Result "1-0"]
[Round "04"]
[TimeControl "180+2"]
[Date "2023.04.18"]
[WhiteClock "0:01:05"]
[BlackClock "0:00:02"]

1. e4 {[%clk 0:03:00]}  e5 {[%clk 0:02:58]} 2. Nf3 {[%clk 0:03:00]}  Nc6 {[%clk 0:02:58]} 3. Bb5 {[%clk 0:03:00]}  a6 {[%clk 0:02:57]} 4. Ba4 {[%clk 0:03:00]}  g6 {[%clk 0:02:56]} 5. c3 {[%clk 0:02:57]}  Bg7 {[%clk 0:02:55]} 6. d4 {[%clk 0:02:57]}  exd4 {[%clk 0:02:56]} 7. cxd4 {[%clk 0:02:57]}  b5 {[%clk 0:02:55]} 8. Bc2 {[%clk 0:02:56]}  d6 {[%clk 0:02:55]} 9. d5 {[%clk 0:02:50]}  Na5 {[%clk 0:02:45]} 10. Bd2 {[%clk 0:02:47]}  Bxb2 {[%clk 0:02:42]} 11. Bxa5 {[%clk 0:02:46]}  Bxa1 {[%clk 0:02:42]} 12. Nc3 {[%clk 0:02:46]}  Bb2 {[%clk 0:02:41]} 13. Qb1 {[%clk 0:02:23]}  Ba3 {[%clk 0:02:38]} 14. O-O {[%clk 0:02:22]}  Nf6 {[%clk 0:02:27]} 15. Qb3 {[%clk 0:02:16]}  Bc5 {[%clk 0:02:25]} 16. e5 {[%clk 0:02:17]}  dxe5 {[%clk 0:02:16]} 17. Nxe5 {[%clk 0:02:17]}  O-O {[%clk 0:02:11]} 18. h3 {[%clk 0:02:12]}  Bb7 {[%clk 0:02:09]} 19. Rd1 {[%clk 0:02:08]}  Bd6 {[%clk 0:01:57]} 20. Nf3 {[%clk 0:01:52]}  Re8 {[%clk 0:01:54]} 21. a4 {[%clk 0:01:48]}  Qd7 {[%clk 0:01:15]} 22. Bd3 {[%clk 0:01:48]}  b4 {[%clk 0:00:54]} 23. Bxb4 {[%clk 0:01:46]}  Bxb4 {[%clk 0:00:45]} 24. Qxb4 {[%clk 0:01:47]}  Bxd5 {[%clk 0:00:44]} 25. Nxd5 {[%clk 0:01:36]}  Nxd5 {[%clk 0:00:41]} 26. Qh4 {[%clk 0:01:36]}  Qe7 {[%clk 0:00:20]} 27. Ng5 {[%clk 0:01:36]}  Nf6 {[%clk 0:00:20]} 28. Bc4 {[%clk 0:01:33]}  Rf8 {[%clk 0:00:16]} 29. Nxh7 {[%clk 0:01:33]}  Kg7 {[%clk 0:00:14]} 30. Nxf8 {[%clk 0:01:31]}  Rxf8 {[%clk 0:00:13]} 31. Qd4 {[%clk 0:01:31]}  Re8 {[%clk 0:00:11]} 32. Bxa6 {[%clk 0:01:31]}  Qe5 {[%clk 0:00:11]} 33. Qxe5 {[%clk 0:01:19]}  Rxe5 {[%clk 0:00:12]} 34. Bb5 {[%clk 0:01:20]}  Nd5 {[%clk 0:00:10]} 35. Rc1 {[%clk 0:01:20]}  Kf6 {[%clk 0:00:06]} 36. g3 {[%clk 0:01:20]}  Re4 {[%clk 0:00:05]} 37. Bc6 {[%clk 0:01:19]}  Rd4 {[%clk 0:00:05]} 38. Bxd5 {[%clk 0:01:18]}  Rxd5 {[%clk 0:00:06]} 39. Rc6+ {[%clk 0:01:17]}  Ke5 {[%clk 0:00:05]} 40. Rxc7 {[%clk 0:01:17]}  f5 {[%clk 0:00:05]} 41. Rc2 {[%clk 0:01:11]}  Rd1+ {[%clk 0:00:04]} 42. Kg2 {[%clk 0:01:11]}  Ra1 {[%clk 0:00:05]} 43. Rc5+ {[%clk 0:01:10]}  Kf6 {[%clk 0:00:05]} 44. Rc6+ {[%clk 0:01:10]}  Kg5 {[%clk 0:00:05]} 45. h4+ {[%clk 0:01:09]}  Kh5 {[%clk 0:00:05]} 46. Rc4 {[%clk 0:01:09]}  g5 {[%clk 0:00:04]} 47. hxg5 {[%clk 0:01:08]}  Kxg5 {[%clk 0:00:05]} 48. Rf4 {[%clk 0:01:08]}  Ra3 {[%clk 0:00:05]} 49. Kf1 {[%clk 0:01:08]}  Kg6 {[%clk 0:00:05]} 50. Ke2 {[%clk 0:01:08]}  Kf6 {[%clk 0:00:05]} 51. Kd2 {[%clk 0:01:09]}  Ke5 {[%clk 0:00:05]} 52. Kc2 {[%clk 0:01:10]}  Kd6 {[%clk 0:00:05]} 53. Kb2 {[%clk 0:01:08]}  Rd3 {[%clk 0:00:05]} 54. Rxf5 {[%clk 0:01:08]}  Kc6 {[%clk 0:00:05]} 55. g4 {[%clk 0:01:08]}  Rd4 {[%clk 0:00:04]} 56. f3 {[%clk 0:01:05]}  Rxa4 {[%clk 0:00:04]} 57. Kc3 {[%clk 0:01:06]}  Kd6 {[%clk 0:00:04]} 58. Kd3 {[%clk 0:01:07]}  Ke6 {[%clk 0:00:05]} 59. Ke3 {[%clk 0:01:07]}  Ra2 {[%clk 0:00:05]} 60. Kf4 {[%clk 0:01:07]}  Ra7 {[%clk 0:00:05]} 61. Re5+ {[%clk 0:01:05]}  Kf6 {[%clk 0:00:04]} 62. g5+ {[%clk 0:01:06]}  Kg6 {[%clk 0:00:05]} 63. Re6+ {[%clk 0:01:06]}  Kf7 {[%clk 0:00:05]} 64. Kf5 {[%clk 0:01:05]}  Ra5+ {[%clk 0:00:04]} 65. Re5 {[%clk 0:01:05]}  Ra1 {[%clk 0:00:04]} 66. f4 {[%clk 0:01:06]}  Ra7 {[%clk 0:00:03]} 67. g6+ {[%clk 0:01:05]}  Kg7 {[%clk 0:00:04]} 68. Kg5 {[%clk 0:01:06]}  Rb7 {[%clk 0:00:03]} 69. f5 {[%clk 0:01:06]}  Kf8 {[%clk 0:00:02]} 70. f6 {[%clk 0:01:05]}  Rb8 {[%clk 0:00:02]} 71. g7+ {[%clk 0:01:05]}  Kg8 {[%clk 0:00:02]} 72. Kg6 {[%clk 0:01:05]} 1-0


[Site "https://www.chess.com"]

[Event "Titled Tuesday Blitz April 18 Late 2023"]
[White "Sokolovsky, Yahli"]
[Black "Sadhwani, Raunak"]
[WhiteFideId "2820242"]
[BlackFideId "35093487"]
[WhiteElo "2316"]
[BlackElo "2631"]
[Result "0-1"]
[Round "04"]
[TimeControl "180+2"]
[Date "2023.04.18"]
[WhiteClock "0:00:03"]
[BlackClock "0:00:17"]

1. b3 {[%clk 0:03:00]}  e5 {[%clk 0:02:59]} 2. Bb2 {[%clk 0:03:01]}  Nc6 {[%clk 0:03:00]} 3. e3 {[%clk 0:03:02]}  Nf6 {[%clk 0:03:00]} 4. Nf3 {[%clk 0:03:03]}  Qe7 {[%clk 0:03:00]} 5. Be2 {[%clk 0:02:58]}  d6 {[%clk 0:02:40]} 6. d4 {[%clk 0:02:56]}  Bg4 {[%clk 0:02:31]} 7. d5 {[%clk 0:02:21]}  Nb8 {[%clk 0:02:29]} 8. c4 {[%clk 0:02:21]}  g6 {[%clk 0:02:26]} 9. Nc3 {[%clk 0:02:18]}  Bg7 {[%clk 0:02:25]} 10. Nd2 {[%clk 0:02:18]}  Bxe2 {[%clk 0:02:25]} 11. Qxe2 {[%clk 0:02:19]}  O-O {[%clk 0:02:25]} 12. O-O {[%clk 0:02:19]}  a5 {[%clk 0:02:25]} 13. a3 {[%clk 0:01:52]}  Na6 {[%clk 0:02:24]} 14. Na2 {[%clk 0:01:18]}  Nc5 {[%clk 0:02:12]} 15. Nc3 {[%clk 0:01:14]}  Na6 {[%clk 0:02:05]} 16. Na2 {[%clk 0:01:10]}  Nd7 {[%clk 0:02:01]} 17. b4 {[%clk 0:01:09]}  f5 {[%clk 0:02:01]} 18. f3 {[%clk 0:01:06]}  h5 {[%clk 0:01:56]} 19. Nb3 {[%clk 0:01:02]}  axb4 {[%clk 0:01:51]} 20. axb4 {[%clk 0:01:03]}  g5 {[%clk 0:01:37]} 21. Bc3 {[%clk 0:00:51]}  g4 {[%clk 0:01:34]} 22. fxg4 {[%clk 0:00:43]}  hxg4 {[%clk 0:01:29]} 23. e4 {[%clk 0:00:43]}  Qg5 {[%clk 0:01:29]} 24. exf5 {[%clk 0:00:41]}  Rxf5 {[%clk 0:01:30]} 25. Nd2 {[%clk 0:00:39]}  Nf6 {[%clk 0:01:07]} 26. Rxf5 {[%clk 0:00:21]}  Qxf5 {[%clk 0:01:08]} 27. Nc1 {[%clk 0:00:22]}  Re8 {[%clk 0:00:43]} 28. Ncb3 {[%clk 0:00:22]}  Qg6 {[%clk 0:00:33]} 29. b5 {[%clk 0:00:22]}  Nb8 {[%clk 0:00:32]} 30. Re1 {[%clk 0:00:21]}  Nbd7 {[%clk 0:00:31]} 31. Nf1 {[%clk 0:00:19]}  Nh5 {[%clk 0:00:29]} 32. g3 {[%clk 0:00:19]}  Nhf6 {[%clk 0:00:26]} 33. Ne3 {[%clk 0:00:20]}  Ra8 {[%clk 0:00:26]} 34. Na5 {[%clk 0:00:16]}  Nc5 {[%clk 0:00:23]} 35. Bb4 {[%clk 0:00:15]}  Nd3 {[%clk 0:00:18]} 36. Qc2 {[%clk 0:00:08]}  Kh7 {[%clk 0:00:18]} 37. Bc3 {[%clk 0:00:02]}  Nxe1 {[%clk 0:00:18]} 38. Qxg6+ {[%clk 0:00:03]}  Kxg6 {[%clk 0:00:18]} 39. Bxe1 {[%clk 0:00:04]}  b6 {[%clk 0:00:18]} 40. Nc6 {[%clk 0:00:04]}  Ra1 {[%clk 0:00:18]} 41. Kf2 {[%clk 0:00:03]}  Ra2+ {[%clk 0:00:19]} 42. Kg1 {[%clk 0:00:03]}  Bh6 {[%clk 0:00:18]} 43. Ne7+ {[%clk 0:00:02]}  Kh7 {[%clk 0:00:19]} 44. N3f5 {[%clk 0:00:02]}  Ne4 {[%clk 0:00:17]} 45. Kf1 {[%clk 0:00:02]}  Bg5 {[%clk 0:00:16]} 46. Kg1 {[%clk 0:00:01]}  Ra1 {[%clk 0:00:16]} 47. Kf1 {[%clk 0:00:01]}  Bd2 {[%clk 0:00:16]} 48. Ke2 {[%clk 0:00:02]}  Rxe1+ {[%clk 0:00:17]} 49. Kd3 {[%clk 0:00:03]}  Bg5 {[%clk 0:00:17]} 0-1


[Site "https://www.chess.com"]